bitfinex/quotes_ETHUSD_20240604
["timestamp","ask_amount","ask_price","bid_price","bid_amount"]
[1717460379570,3.26445685,3763.5,3763.4,0.1222006]
[1717460380101,5.0987,3763.4,3763.0,1.0]
[1717460380322,2.65731,3763.2,3763.0,1.0]
[1717460380604,4.58517611,3763.1,3763.0,1.0]
[1717460380748,5.42355361,3763.1,3763.0,1.0]
[1717460380954,3.8384628,3763.1,3763.0,1.0]
[1717460381213,4.80726299,3763.1,3763.0,1.0]
[1717460382691,7.27816299,3763.1,3763.0,1.0]
[1717460383262,7.27822233,3763.1,3763.0,1.0]
[1717460387411,9.8994881,3763.1,3763.0,0.65625]
[1717460387704,9.8994881,3763.1,3760.5,1.063862]
[1717460387705,20.0,3761.1,3758.5,10.81414293]
[1717460387852,20.0,3761.1,3758.2,2.76406218]
[1717460387853,3.66049,3758.7,3758.6,2.23869263]
[1717460388064,5.45149,3758.7,3758.6,2.63e-06]
[1717460388298,5.45149,3758.7,3755.4,3.22473922]
[1717460388299,2.66098,3758.0,3757.9,2.96612976]
[1717460388542,2.66098,3758.0,3757.7,1.16e-06]
[1717460388543,5.92673,3757.8,3757.7,1.16e-06]
[1717460388702,8.76756663,3757.8,3757.7,1.16e-06]
[1717460388917,8.76756663,3757.8,3754.0,0.83091106]
[1717460388918,2.66207,3756.5,3754.5,0.04660591]
[1717460389072,2.66207,3756.5,3754.6,0.125069]
[1717460389073,3.57449997,3756.4,3754.6,0.125069]
[1717460389278,2.66332,3754.7,3754.6,0.125069]
[1717460389483,2.66332,3754.7,3754.0,0.005]
[1717460390054,2.6628,3755.5,3754.0,0.005]
[1717460390329,2.6628,3755.5,3753.6,2.84854695]
[1717460390536,2.6628,3755.5,3753.7,0.2848547]
[1717460390537,0.24938024,3755.4,3753.7,0.2848547]
[1717460390841,0.24938024,3755.4,3753.6,2.84854695]
[1717460390842,3.24938024,3755.4,3753.6,2.84854695]
[1717460391122,3.0,3755.3,3753.6,2.84854695]
[1717460391348,2.66325,3754.8,3753.6,2.84854695]
[1717460391546,2.66349,3754.5,3753.6,2.84854695]
[1717460391837,0.39847558,3754.4,3753.6,2.84854695]
[1717460391974,3.39847558,3754.4,3753.6,2.84854695]
[1717460392322,3.39847558,3754.4,3752.1,0.00652331]
[1717460392323,2.66403,3753.7,3752.1,0.00652331]
[1717460392652,1.32126577,3754.1,3749.3,3.01969044]
[1717460392653,1.32126577,3754.1,3749.5,4.96455507]
[1717460392654,2.6652,3752.1,3749.5,4.96455507]
[1717460392833,3.997,3753.2,3749.3,3.01969044]
[1717460392834,2.66637,3750.5,3749.3,3.01969044]
[1717460393128,2.66461,3752.9,3746.5,100.55060737]
[1717460393129,2.66895,3746.8,3746.5,49.91802736]
[1717460393451,6.66409,3749.4,3743.4,0.02]
[1717460393453,1.0,3744.7,3743.4,0.02]
[1717460393578,3.997,3746.6,3740.7,1.97e-06]
[1717460393579,0.1319,3743.1,3740.7,1.97e-06]
[1717460393780,0.1319,3743.1,3739.2,1.069443]
[1717460393781,1.0,3739.3,3739.2,1.069443]
[1717460394082,1.0,3739.3,3737.6,1.10121474]
[1717460394083,0.40525072,3739.2,3735.5,0.238357]
[1717460394283,2.4045,3739.1,3735.6,4.0]
[1717460394475,2.4045,3739.1,3735.1,2.6773]
[1717460394476,2.4045,3739.1,3736.9,3.49603484]
[1717460394477,1.595,3739.0,3736.9,3.49603484]
[1717460394688,3.16988863,3738.9,3736.9,4.94845999]
[1717460394956,3.16988863,3738.9,3729.0,0.0817418]
[1717460394957,3.16988863,3738.9,3732.1,2.07786674]
[1717460394958,2.67802,3734.1,3732.1,2.07786674]
[1717460395285,2.67614,3736.8,3732.1,2.07786674]
[1717460395414,0.57848469,3736.7,3732.5,2.67916]
[1717460395616,1.10657964,3736.6,3732.3,2.67925]
[1717460395816,0.24565528,3736.5,3732.3,2.67925]
[1717460396024,0.23746677,3736.4,3731.9,0.38770957]
[1717460396203,0.17696677,3736.4,3731.9,0.38770957]
[1717460396410,0.22407756,3736.3,3732.0,0.8157058]
[1717460396623,0.75,3735.5,3733.9,2.265]
[1717460396800,0.75,3735.5,3732.9,2.67882]
[1717460396999,0.64183068,3735.6,3734.2,2.67789]
[1717460397235,0.21156147,3735.5,3734.2,2.67789]
[1717460397396,1.0,3738.8,3734.2,2.67789]
[1717460397749,2.67399,3739.8,3734.4,5.02795]
[1717460397945,1.38936884,3742.5,3735.6,2.67689]
[1717460398096,0.44291256,3742.6,3734.5,0.65346909]
[1717460398097,4.34360632,3740.5,3737.0,2.67591]
[1717460398297,3.90298257,3741.3,3737.9,2.67528]
[1717460398499,0.10518675,3743.1,3739.0,1.0]
[1717460398734,0.10518675,3743.1,3739.2,2.265]
[1717460399055,0.10518675,3743.1,3739.3,3.93516452]
[1717460399263,0.10518675,3743.1,3739.1,0.07028239]
[1717460399443,0.16658549,3743.0,3739.1,0.07028239]
[1717460399756,0.10518675,3743.1,3739.4,1.0]
[1717460399912,0.1622941,3742.9,3741.8,2.67244]
[1717460400114,0.10518675,3743.1,3741.9,0.98111196]
[1717460400310,0.10518675,3743.1,3742.8,2.265]
[1717460400646,2.66958,3746.0,3743.0,4.016]
[1717460400969,2.66958,3746.0,3744.5,2.265]
[1717460400970,0.1622941,3745.9,3744.5,2.265]
[1717460401115,0.1622941,3745.9,3745.3,2.265]
[1717460401578,1.595,3749.9,3745.3,2.265]
[1717460401579,2.66758,3748.8,3745.3,2.265]
[1717460401778,2.66758,3748.8,3743.9,2.265]
[1717460401779,2.66758,3748.8,3747.1,2.265]
[1717460402040,2.66758,3748.8,3746.0,0.36944392]
[1717460402263,2.66758,3748.8,3743.7,0.19335633]
[1717460402264,0.4236423,3748.7,3746.3,0.75]
[1717460402466,0.4236423,3748.7,3746.8,0.75]
[1717460402956,0.1568843,3748.7,3746.8,0.75]
[1717460403288,2.66773,3748.5,3743.7,0.19335633]
[1717460403485,0.15862953,3748.6,3742.5,2.2582]
[1717460403486,1.0,3747.3,3743.0,2.317]
[1717460403640,1.0,3746.7,3742.5,2.67195]
[1717460403838,0.68254599,3746.6,3742.7,2.317]
[1717460404073,2.82777953,3746.5,3743.7,2.317]
[1717460404258,2.82777953,3746.5,3743.4,2.317]
[1717460404575,0.75,3746.2,3742.6,0.267195]
[1717460404778,0.55,3746.1,3742.5,2.317]
[1717460404993,0.55,3746.1,3742.9,2.67166]
[1717460404994,0.1585844,3746.1,3742.9,2.67166]
[1717460405193,0.1585844,3746.1,3743.4,2.317]
[1717460405688,2.66915,3746.5,3743.4,2.317]
[1717460405837,0.1585844,3746.4,3743.7,2.67115]
[1717460406037,2.068717,3747.5,3743.7,2.67115]
[1717460406254,2.068717,3747.5,3743.4,2.317]
[1717460406255,2.6696,3745.9,3742.7,2.67179]
[1717460406648,0.15821623,3745.8,3742.7,2.67179]
[1717460406949,0.75,3745.5,3743.5,2.67128]
[1717460407396,2.66894,3746.8,3743.3,2.317]
[1717460407397,0.15811897,3745.4,3744.3,2.6707]
[1717460407696,2.66839,3747.6,3744.5,2.67052]
[1717460407896,0.75,3746.8,3744.5,2.67052]
[1717460408235,2.66835,3747.7,3745.2,2.67004]
[1717460408481,0.15811897,3747.6,3745.2,2.67004]
[1717460408666,0.15811897,3747.6,3745.9,2.317]
[1717460408869,2.66855,3747.4,3745.9,0.33814578]
[1717460409177,0.15597118,3747.3,3745.9,0.33814578]
[1717460409395,0.15597118,3747.3,3746.1,2.66941]
[1717460409538,2.66796,3748.2,3746.1,2.66941]
[1717460409737,2.66745,3748.9,3746.7,2.66895]
[1717460409938,0.15655895,3748.1,3746.7,2.66895]
[1717460410193,0.266745,3748.8,3747.1,2.66872]
[1717460410543,0.15685865,3748.7,3747.1,2.66872]
[1717460410961,0.15685865,3748.7,3747.0,2.317]
[1717460411201,0.15685865,3748.7,3746.7,2.66901]
[1717460411202,2.66745,3748.9,3746.7,2.66901]
[1717460411364,0.15685865,3748.6,3746.7,2.66901]
[1717460411560,0.266745,3748.8,3746.7,2.66901]
[1717460412200,0.15685865,3748.7,3746.7,2.66901]
[1717460412341,0.15685865,3748.7,3747.3,2.66853]
[1717460412655,0.15685865,3748.7,3746.0,2.317]
[1717460412656,2.66696,3749.6,3746.6,2.66907]
[1717460412841,2.66836,3747.7,3745.9,2.66956]
[1717460413038,2.66836,3747.7,3744.4,0.26707]
[1717460413039,2.66881,3747.0,3745.1,2.67012]
[1717460413242,2.66897,3746.8,3744.4,3.99628068]
[1717460413491,2.66897,3746.8,3745.1,2.6701]
[1717460413790,0.75,3750.8,3746.1,2.317]
[1717460413989,0.15190614,3746.7,3746.1,2.317]
[1717460414211,0.57672656,3750.8,3746.1,2.317]
[1717460414212,0.75,3746.9,3746.2,2.66931]
[1717460414508,2.66699,3749.6,3747.4,2.6685]
[1717460414667,3.41699,3749.6,3747.4,2.6685]
[1717460414866,0.15190614,3749.5,3747.4,2.6685]
[1717460415216,0.15190614,3749.5,3747.6,2.66836]
[1717460415980,2.66709,3749.4,3746.3,0.498631]
[1717460416175,2.66709,3749.4,3746.1,2.317]
[1717460416176,2.66726,3749.2,3747.2,2.66863]
[1717460416378,0.75,3749.0,3747.2,2.66863]
[1717460416996,0.15286757,3748.9,3747.2,2.66863]
[1717460417197,0.57664466,3748.8,3747.2,2.66863]
[1717460417379,0.15286757,3748.9,3747.8,2.66816]
[1717460417566,2.66671,3750.0,3748.0,2.66805]
[1717460417567,0.14732167,3748.7,3748.0,2.66805]
[1717460417761,0.57664466,3749.7,3748.0,2.66805]
[1717460418011,0.57664466,3749.9,3748.0,2.66805]
[1717460418166,0.14732167,3749.6,3748.0,2.66805]
[1717460418368,0.57664466,3749.5,3748.0,2.66805]
[1717460418691,0.57642516,3749.4,3748.0,2.66805]
[1717460418900,0.57642516,3749.3,3747.7,3.0]
[1717460419210,2.66618,3750.7,3747.1,2.317]
[1717460419211,0.57642516,3749.2,3747.1,2.317]
[1717460419438,0.57642516,3749.1,3747.2,0.55]
[1717460419638,0.72374683,3749.1,3748.3,2.66781]
[1717460419763,0.72374683,3749.1,3748.1,2.317]
[1717460419764,0.57642516,3749.0,3748.5,2.66767]
[1717460419969,2.66618,3750.7,3748.5,2.66767]
[1717460420198,0.84295118,3750.6,3748.5,2.66767]
[1717460420404,0.84295118,3750.6,3749.1,2.6673]
[1717460420405,0.57633318,3750.5,3749.1,2.6673]
[1717460420616,0.57633318,3750.4,3749.1,2.6673]
[1717460420770,0.57633318,3750.3,3749.1,2.6673]
[1717460420969,0.57633318,3750.2,3749.1,2.6673]
[1717460421317,0.57633318,3750.1,3749.1,4.9843]
[1717460421515,0.57624914,3750.0,3749.1,2.6673]
[1717460421729,0.57624914,3749.9,3749.1,2.6673]
[1717460422221,2.66568,3751.4,3749.1,2.6673]
[1717460422222,0.57624914,3749.8,3749.1,2.6673]
[1717460422386,0.57624914,3749.7,3749.1,2.6673]
[1717460422584,0.57624914,3749.6,3749.1,2.6673]
[1717460422812,0.57624914,3749.5,3748.3,2.66783]
[1717460423000,2.66627,3750.6,3748.3,2.66783]
[1717460423001,0.57624914,3749.4,3748.3,2.66783]
[1717460423373,0.57624914,3749.3,3747.5,2.66837]
[1717460423686,0.57624914,3749.2,3747.5,2.66837]
[1717460423888,0.72412301,3749.1,3747.5,2.66837]
[1717460424106,0.57624914,3749.1,3747.5,2.66837]
[1717460424320,0.57624914,3749.0,3747.5,2.935207]
[1717460424469,0.57624914,3749.0,3748.3,2.66782]
[1717460425232,0.57624914,3748.9,3748.3,2.66782]
[1717460425379,2.66626,3750.6,3748.3,2.66782]
[1717460425380,0.57624914,3748.8,3748.3,2.66782]
[1717460425576,0.57624914,3748.7,3748.5,2.66773]
[1717460425804,0.57624914,3748.6,3748.5,2.66773]
[1717460426173,0.57624914,3748.6,3748.5,2.934503]
[1717460426774,2.6658,3751.3,3749.1,2.66728]
[1717460426992,1.32126577,3751.2,3749.2,3.0]
[1717460427187,0.14759434,3751.2,3749.2,4.83676534]
[1717460427393,0.14759434,3751.2,3749.4,2.66706]
[1717460427591,2.6658,3751.3,3749.4,3.41744253]
[1717460428344,2.6658,3751.3,3749.4,2.66706]
[1717460429222,2.6658,3751.3,3748.5,3.057773]
[1717460429223,2.6658,3751.3,3748.9,9.15662443]
[1717460429540,2.6658,3751.3,3737.4,1.04988898]
[1717460429541,1.32126577,3750.6,3747.6,2.66835]
[1717460429680,0.2652,3750.3,3748.1,2.66795]
[1717460429880,2.40072537,3751.2,3748.1,2.66795]
[1717460429881,2.66693,3749.7,3748.1,2.66795]
[1717460430209,0.14812537,3749.6,3748.7,2.66759]
[1717460430429,0.14812537,3749.6,3747.3,2.9909731]
[1717460430430,0.14812537,3749.6,3749.0,2.66734]
[1717460430725,0.75,3751.0,3749.0,2.66734]
[1717460430726,0.75,3751.0,3749.5,2.66697]
[1717460430930,2.849566,3751.5,3749.5,2.66697]
[1717460431083,0.1478599,3750.9,3749.9,2.66671]
[1717460431282,2.849566,3751.5,3750.0,1.32126577]
[1717460431530,0.183936,3751.5,3750.1,2.66658]
[1717460431675,0.183936,3751.5,3750.3,2.6664]
[1717460431881,0.183936,3751.5,3750.5,2.6663]
[1717460431882,0.17492424,3751.4,3750.5,2.6663]
[1717460432126,0.183936,3751.5,3750.8,2.66606]
[1717460432428,0.183936,3751.5,3750.9,1.32126577]
[1717460432640,0.183936,3751.5,3751.0,2.66589]
[1717460432777,0.183936,3751.5,3750.4,3.0]
[1717460432778,0.183936,3751.5,3750.4,2.66633]
[1717460433133,0.17711393,3751.4,3750.6,2.66619]
[1717460433454,0.17711393,3751.4,3751.2,2.6658]
[1717460433579,0.183936,3751.5,3751.3,1.32126577]
[1717460434036,0.183936,3751.5,3750.6,2.66621]
[1717460434184,0.183936,3751.5,3750.6,1.32126577]
[1717460434582,0.183936,3751.5,3750.7,1.32126577]
[1717460434583,0.17731279,3751.4,3750.7,1.32126577]
[1717460434821,0.183936,3751.5,3750.7,1.32126577]
[1717460435131,0.183936,3751.5,3751.1,3.98711577]
[1717460435681,0.183936,3751.5,3750.5,5.66628]
[1717460435905,0.183936,3751.5,3750.6,1.32126577]
[1717460436625,0.183936,3751.5,3750.7,2.66614]
[1717460436839,0.57606724,3751.4,3750.8,1.32126577]
[1717460437042,0.57606724,3751.3,3750.8,1.32126577]
[1717460437223,0.57606724,3751.3,3750.1,2.66655]
[1717460437224,0.57606724,3751.2,3750.1,2.66655]
[1717460437385,0.183936,3751.5,3749.1,6.7888246]
[1717460437386,1.90105054,3751.1,3749.1,6.7888246]
[1717460437586,2.66623,3750.7,3749.3,2.66715]
[1717460437841,2.66623,3750.7,3749.4,1.32126577]
[1717460438051,1.90536262,3750.6,3750.5,2.66631]
[1717460438339,1.90536262,3750.6,3749.9,2.66673]
[1717460438486,1.72822776,3750.5,3749.9,2.66673]
[1717460438684,0.183936,3751.5,3749.9,2.66673]
[1717460438685,1.90506248,3750.4,3749.9,2.66673]
[1717460439106,1.90506248,3750.4,3750.1,2.66658]
[1717460439107,1.72822776,3750.3,3750.1,2.66658]
[1717460439308,0.183936,3751.5,3750.1,2.66658]
[1717460439309,0.183936,3751.5,3750.2,3.0]
[1717460439565,0.183936,3751.5,3749.8,1.32126577]
[1717460439566,4.57102399,3751.4,3749.8,1.32126577]
[1717460439700,2.66586,3751.2,3749.8,1.32126577]
[1717460439903,2.66615,3750.8,3747.2,2.6686]
[1717460440139,2.66625,3750.6,3749.2,3.98846577]
[1717460440444,1.72840409,3750.5,3749.2,3.98846577]
[1717460440644,1.72840409,3750.5,3748.3,1.06713]
[1717460440801,2.66672,3750.0,3747.6,2.317]
[1717460441000,2.66685,3749.8,3748.2,2.66793]
[1717460441241,0.57627973,3749.9,3748.0,10.74282368]
[1717460441242,2.66713,3749.4,3748.0,7.95182368]
[1717460441453,1.7288392,3749.3,3747.7,2.66829]
[1717460441796,0.75231151,3749.2,3748.5,2.66772]
[1717460442031,1.7288392,3749.1,3748.5,0.266772]
[1717460442259,1.7288392,3749.0,3748.9,2.66738]
[1717460442401,1.90450778,3749.0,3748.9,2.66738]
[1717460443043,2.6659,3751.1,3749.5,2.66701]
[1717460443202,2.92986,3752.9,3750.0,2.66666]
[1717460443203,2.66555,3751.6,3750.0,2.66666]
[1717460443405,2.66555,3751.6,3750.3,2.66639]
[1717460443746,2.6652,3752.1,3750.5,2.66627]
[1717460443953,2.6652,3752.1,3750.8,2.66608]
[1717460444100,2.6652,3752.1,3750.9,1.32126577]
[1717460444300,2.66554,3751.6,3750.3,2.66644]
[1717460444548,2.66554,3751.6,3750.4,1.32126577]
[1717460444757,2.66571,3751.4,3750.3,3.98770577]
[1717460445308,0.5092924,3752.3,3750.4,1.32126577]
[1717460445309,2.66534,3751.9,3750.4,1.32126577]
[1717460445902,2.66534,3751.9,3750.5,2.66625]
[1717460446141,2.66534,3751.9,3750.6,1.32126577]
[1717460448151,2.849556,3751.5,3750.6,1.32126577]
[1717460449120,2.849556,3751.5,3750.6,0.59306566]
[1717460449650,0.183936,3751.5,3750.7,0.59306566]
[1717460450150,1.32267959,3751.4,3750.7,0.59306566]
[1717460450509,0.1704519,3751.4,3750.7,0.59306566]
[1717460451733,0.1704519,3751.4,3750.7,3.25919566]
[1717460451966,0.1704519,3751.4,3750.7,3.88511523]
[1717460452126,0.183936,3751.5,3750.7,3.88511523]
[1717460452326,0.183936,3751.5,3750.7,3.25919566]
[1717460453466,0.17116759,3751.4,3750.9,2.66599]
[1717460453669,0.17116759,3751.4,3751.0,0.59164426]
[1717460453876,0.17116759,3751.4,3750.9,2.26971819]
[1717460454167,0.17116759,3751.4,3750.6,3.0]
[1717460454383,0.17116759,3751.4,3750.7,2.66613]
[1717460454669,0.183936,3751.5,3750.7,2.66613]
[1717460455027,0.17134903,3751.4,3750.5,3.0]
[1717460455232,0.17134903,3751.4,3750.3,11.5665006]
[1717460455427,0.17134903,3751.4,3750.4,2.66637]
[1717460455756,0.17134903,3751.4,3750.6,2.66623]
[1717460457441,0.41377283,3751.4,3750.6,2.66623]
[1717460457645,0.17134206,3751.3,3750.3,8.5665006]
[1717460457947,0.2424238,3751.4,3750.4,2.66637]
[1717460458261,0.17134206,3751.3,3750.4,2.66637]
[1717460458850,0.17134206,3751.3,3750.8,2.66608]
[1717460459033,0.2424238,3751.4,3750.8,2.66608]
[1717460459688,0.17134206,3751.3,3750.8,2.66608]
[1717460459854,0.2424238,3751.4,3750.8,2.66608]
[1717460460053,0.17134206,3751.3,3750.8,2.66608]
[1717460460451,0.17134206,3751.3,3750.4,2.66635]
[1717460461298,2.31583379,3751.2,3750.4,2.66635]
[1717460461481,0.68063446,3751.3,3750.6,2.249]
[1717460461482,0.17132459,3751.1,3750.6,2.249]
[1717460461649,0.2424238,3751.4,3751.1,2.66587]
[1717460461853,0.17132459,3751.3,3751.1,5.47087]
[1717460462089,0.2424238,3751.4,3751.1,2.66587]
[1717460464845,0.2424238,3751.4,3751.3,2.66574]
[1717460465411,0.2424238,3751.4,3751.3,2.932314]
[1717460465612,0.5092924,3752.5,3751.4,2.66564]
[1717460465810,0.5092924,3752.5,3751.6,2.6655]
[1717460466014,0.5092924,3752.6,3751.6,2.6655]
[1717460466302,3.1742524,3752.4,3751.4,2.249]
[1717460466634,2.82420063,3752.3,3751.4,2.249]
[1717460466836,2.31490823,3752.2,3751.5,2.66558]
[1717460467000,0.67535909,3752.3,3751.8,2.66534]
[1717460467199,0.5092924,3752.5,3752.1,2.66513]
[1717460467435,0.16606669,3752.2,3752.1,2.931643]
[1717460467754,0.5092924,3753.3,3752.7,2.66473]
[1717460467995,3.1734324,3753.6,3752.7,2.66473]
[1717460468128,0.16611222,3753.2,3752.7,2.66473]
[1717460468452,2.66414,3753.6,3752.7,2.66473]
[1717460468661,0.5092924,3753.7,3752.7,2.66473]
[1717460468662,0.16611222,3753.1,3752.7,2.66473]
[1717460468821,0.5092924,3753.8,3753.0,2.66448]
[1717460469005,0.5092924,3753.8,3753.3,2.66425]
[1717460469006,0.92573546,3753.7,3753.3,2.66425]
[1717460469202,1.09184768,3753.7,3753.4,2.805]
[1717460469404,0.16611222,3753.7,3753.5,2.66418]
[1717460469704,0.16611222,3753.7,3752.1,1.595]
[1717460469705,0.16611222,3753.7,3752.2,2.66509]
[1717460469706,2.66404,3753.7,3752.2,2.66509]
[1717460469904,2.66404,3753.7,3751.1,10.30120127]
[1717460469905,2.46971581,3753.6,3751.8,2.249]
[1717460470146,2.82378882,3753.5,3751.8,2.249]
[1717460470345,2.82378882,3753.4,3751.9,2.805]
[1717460470568,0.92579857,3753.3,3752.1,2.805]
[1717460470770,2.66446,3753.1,3752.0,3.0]
[1717460470914,2.66446,3753.1,3751.8,4.91435]
[1717460470915,0.266446,3753.1,3751.8,2.249]
[1717460471117,2.82398392,3753.0,3751.1,7.63535127]
[1717460471373,3.75520448,3753.3,3751.0,2.249]
[1717460471374,2.66524,3752.1,3751.0,2.249]
[1717460471632,2.66532,3751.9,3751.0,2.249]
[1717460471836,0.66430869,3752.0,3751.0,2.249]
[1717460472043,0.5092924,3752.1,3751.0,2.249]
[1717460472276,0.5092924,3752.1,3750.6,9.52284406]
[1717460472277,0.76429028,3752.6,3752.3,2.66503]
[1717460472431,0.55039931,3753.4,3752.8,2.66467]
[1717460472632,0.82559576,3753.5,3751.2,2.249]
[1717460472633,2.24707461,3753.3,3751.2,2.249]
[1717460472834,0.55039931,3752.6,3751.2,2.249]
[1717460473051,1.09087448,3752.9,3751.2,2.249]
[1717460473052,0.55039931,3752.4,3751.3,2.66567]
[1717460473371,3.01462523,3752.3,3750.7,2.66612]
[1717460473522,3.01462523,3752.3,3749.3,2.66715]
[1717460473523,2.66545,3751.8,3750.4,3.64559365]
[1717460473942,2.46538063,3751.7,3750.9,2.666]
[1717460474150,0.14967045,3751.7,3751.4,2.249]
[1717460474363,0.14967045,3751.7,3751.6,5.47052]
[1717460474587,1.37033343,3752.5,3751.6,5.47052]
[1717460474588,0.55039931,3753.3,3752.8,2.66467]
[1717460474795,1.09087448,3753.6,3751.6,0.771952]
[1717460474796,0.55039931,3753.4,3751.6,0.771952]
[1717460474999,0.82559576,3753.6,3752.6,2.6648]
[1717460475000,2.66411,3753.6,3752.6,2.6648]
[1717460475139,2.66436,3753.3,3752.4,2.249]
[1717460475344,2.66436,3753.3,3751.8,3.0]
[1717460475345,2.86531094,3753.2,3751.8,3.0]
[1717460475558,2.66459,3753.0,3751.9,2.6653]
[1717460475765,2.66481,3752.7,3751.6,8.98770168]
[1717460476042,2.66504,3752.3,3751.0,9.52971119]
[1717460476242,2.66532,3751.9,3751.0,6.86376119]
[1717460477051,0.55039931,3752.1,3751.0,9.99708564]
[1717460477251,0.92620933,3752.0,3751.0,9.99708564]
[1717460477451,0.55039931,3752.3,3751.0,9.99708564]
[1717460477754,2.66519,3752.1,3751.0,9.99708564]
[1717460478149,0.55039931,3752.3,3751.0,6.86376119]
[1717460478348,0.55039931,3752.3,3750.8,2.249]
[1717460478583,0.55039931,3752.0,3750.8,2.249]
[1717460478797,0.55039931,3752.1,3751.1,2.66582]
[1717460479000,0.55039931,3752.3,3751.1,2.66582]
[1717460479180,0.92613684,3752.2,3751.1,2.66582]
[1717460479387,3.49049576,3752.5,3750.8,2.249]
[1717460479388,2.6649,3752.5,3751.3,2.66568]
[1717460479698,2.6649,3752.5,3751.8,0.00130839]
[1717460480257,2.8655754,3752.4,3751.8,0.00130839]
[1717460480484,0.55039931,3752.1,3751.8,0.00130839]
[1717460480647,1.47646399,3752.0,3751.8,0.00130839]
[1717460480852,3.14096535,3751.9,3751.8,0.00130839]
[1717460481118,3.14096535,3751.9,3750.0,2.249]
[1717460481119,2.31536959,3751.9,3750.0,2.249]
[1717460481259,2.66612,3750.8,3750.0,2.249]
[1717460481767,0.55063877,3751.4,3750.0,2.249]
[1717460481967,0.55063877,3751.7,3750.0,2.5224519]
[1717460482199,0.1446464,3751.3,3750.8,2.66604]
[1717460482376,0.55063877,3752.2,3751.7,2.66545]
[1717460482578,0.55063877,3752.4,3751.7,2.10976659]
[1717460482910,0.55063877,3752.6,3751.7,2.10976659]
[1717460483055,0.92604081,3752.5,3751.7,2.10976659]
[1717460483260,0.92604081,3752.6,3751.7,2.10976659]
[1717460483510,2.31513398,3752.5,3751.7,2.10976659]
[1717460483815,0.55063877,3752.6,3751.7,2.10976659]
[1717460484011,0.9260511,3752.5,3751.7,2.10976659]
[1717460484375,0.55063877,3752.7,3751.7,2.10976659]
[1717460484566,2.66566,3751.5,3750.3,2.66643]
[1717460484919,2.66566,3751.5,3750.1,0.25224519]
[1717460484920,2.66591,3751.1,3750.1,0.25224519]
[1717460485065,0.55063877,3751.4,3750.2,2.66651]
[1717460485254,0.92639445,3751.3,3750.1,0.25224519]
[1717460485575,0.55063877,3751.9,3750.6,2.66623]
[1717460485781,0.55063877,3751.7,3749.6,7.68993367]
[1717460485981,2.666,3751.0,3749.8,2.6668]
[1717460486356,0.55063877,3751.4,3749.6,7.68993367]
[1717460486565,3.59216758,3751.3,3749.6,7.68993367]
[1717460486894,0.92635109,3751.2,3750.0,0.52569709]
[1717460487072,0.55063877,3751.3,3750.0,0.52569709]
[1717460487277,2.31596473,3751.2,3750.0,0.52569709]
[1717460487487,0.92638589,3751.1,3750.0,0.52569709]
[1717460487669,0.55063877,3751.3,3750.1,2.66656]
[1717460487882,0.55063877,3751.4,3750.4,2.805]
[1717460488084,0.55063877,3751.5,3750.9,2.66598]
[1717460488302,1.07067042,3751.4,3750.9,2.66598]
[1717460488471,0.14434153,3751.4,3750.9,2.66598]
[1717460488861,0.55063877,3752.0,3751.3,2.66574]
[1717460489165,0.55063877,3752.0,3751.6,2.66548]
[1717460489166,1.07048817,3751.9,3751.6,2.66548]
[1717460489624,0.14434153,3751.9,3751.6,2.66548]
[1717460489778,0.14434153,3751.9,3750.8,8.66618356]
[1717460490119,2.66546,3751.7,3750.8,11.33226356]
[1717460490422,2.45986698,3751.6,3751.1,2.66584]
[1717460490580,0.14441513,3751.6,3751.1,2.66584]
[1717460490777,0.14441513,3751.6,3750.2,2.66651]
[1717460490778,2.66587,3751.2,3750.2,2.66651]
[1717460491016,2.66612,3750.8,3750.0,0.2734519]
[1717460491220,0.55063877,3751.0,3749.7,2.249]
[1717460491421,0.15210271,3751.6,3749.7,2.249]
[1717460491422,3.3612639,3750.7,3749.7,2.249]
[1717460491743,2.31592768,3750.6,3749.7,2.249]
[1717460491882,1.0709439,3750.5,3749.7,2.249]
[1717460492086,0.14457283,3750.5,3749.8,2.6668]
[1717460492779,0.55063877,3750.6,3749.8,2.6668]
[1717460493084,0.55063877,3750.8,3750.1,2.66654]
[1717460493281,1.07105242,3750.7,3750.1,2.66654]
[1717460493486,0.14457283,3750.7,3750.1,2.66654]
[1717460493678,0.55063877,3751.1,3750.1,2.66654]
[1717460493884,1.07094962,3751.0,3750.1,2.66654]
[1717460494214,2.6661,3750.8,3749.9,0.27344362]
[1717460494396,2.31603455,3750.7,3749.9,0.27344362]
[1717460494596,0.92641382,3750.6,3750.0,2.66665]
[1717460494797,0.92641382,3750.6,3750.3,2.66641]
[1717460494798,0.14457283,3750.6,3750.3,2.66641]
[1717460495191,0.55063877,3751.2,3750.5,2.66631]
[1717460495405,0.55063877,3751.4,3750.5,2.66631]
[1717460495598,0.1441383,3751.1,3750.5,2.66631]
[1717460495821,2.6658,3751.3,3750.1,2.66658]
[1717460496025,0.13942975,3751.0,3750.3,2.66643]
[1717460496223,0.13920992,3751.2,3750.2,3.0]
[1717460496417,0.55063877,3751.3,3749.9,0.27344362]
[1717460496418,2.66606,3750.9,3749.9,2.94015362]
[1717460496933,2.66628,3750.6,3749.9,0.27344362]
[1717460497129,2.66628,3750.6,3749.7,2.249]
[1717460497130,0.55063877,3750.7,3749.8,2.66677]
[1717460497313,0.13920992,3750.6,3750.0,2.66664]
[1717460497636,2.66605,3750.9,3749.9,2.66673]
[1717460497831,2.66605,3750.9,3749.7,2.249]
[1717460497832,0.92641478,3750.8,3749.7,2.249]
[1717460498054,2.31604527,3750.7,3749.7,2.249]
[1717460498194,0.68984869,3750.8,3749.7,2.249]
[1717460498394,2.31620418,3750.7,3749.7,2.249]
[1717460498736,0.92648167,3750.6,3749.7,2.249]
[1717460498904,2.86687208,3750.5,3749.0,0.0008]
[1717460499103,0.55063877,3750.3,3749.0,0.0008]
[1717460499319,0.92648167,3750.2,3749.1,2.66725]
[1717460499516,0.55063877,3750.0,3749.1,2.66725]
[1717460499851,2.66675,3749.9,3749.0,0.0008]